bitfinex-derivatives/quotes_BTCF0:USTF0_20250402
["timestamp","ask_amount","ask_price","bid_price","bid_amount"]
[1743626529324,0.01062135,85377.0,85367.0,0.0585691]
[1743626529325,0.01062135,85376.0,85367.0,0.0585691]
[1743626529527,0.1171375,85368.0,85367.0,0.00017569]
[1743626529827,0.12121827,85368.0,85348.0,0.1171641]
[1743626530027,0.3608,85349.0,85336.0,0.00888563]
[1743626530232,0.3608,85342.0,85336.0,0.00072]
[1743626530431,0.1171801,85337.0,85336.0,0.00072]
[1743626530635,0.47149214,85337.0,85300.0,0.47583466]
[1743626530820,0.3608,85306.0,85305.0,0.117224]
[1743626531021,0.1172147,85312.0,85310.0,0.1172158]
[1743626531219,0.1,85312.0,85308.0,0.1172192]
[1743626531419,0.0586086,85310.0,85300.0,0.1]
[1743626531623,0.3608,85311.0,85308.0,0.1172172]
[1743626531624,0.0586095,85309.0,85308.0,0.1172172]
[1743626531830,0.4194079,85311.0,85310.0,0.1172172]
[1743626532127,0.1172279,85303.0,85302.0,0.1172253]
[1743626532330,0.3608,85304.0,85303.0,0.1172268]
[1743626532535,0.3608,85304.0,85303.0,0.1168268]
[1743626532730,0.36033963,85304.0,85303.0,0.1168268]
[1743626532926,0.1172295,85301.0,85300.0,0.1]
[1743626533132,0.1172423,85294.0,85293.0,0.1172377]
[1743626533331,0.1172423,85294.0,85276.0,0.3608]
[1743626533332,0.1172446,85291.0,85290.0,0.1172428]
[1743626533635,0.2172446,85291.0,85290.0,0.1172428]
[1743626533836,0.17791899,85293.0,85291.0,0.1172424]
[1743626534023,0.3608,85294.0,85293.0,0.1172405]
[1743626534223,0.36033963,85304.0,85303.0,0.1172268]
[1743626534419,0.45033963,85304.0,85296.0,0.0586177]
[1743626534620,0.1172492,85288.0,85287.0,0.1172423]
[1743626534831,0.09,85288.0,85287.0,0.175865]
[1743626535031,0.3608,85297.0,85287.0,0.0586227]
[1743626535235,0.4708,85297.0,85296.0,0.1172364]
[1743626536229,0.47148,85297.0,85296.0,0.1178364]
[1743626536934,0.588715,85297.0,85296.0,0.1178364]
[1743626537534,0.47148,85297.0,85296.0,0.1178364]
[1743626537726,0.588715,85297.0,85296.0,0.1178364]
[1743626538031,0.588715,85297.0,85296.0,0.1172364]
[1743626538429,0.47148,85297.0,85296.0,0.1172364]
[1743626538627,0.3608,85327.0,85311.0,0.1172158]
[1743626538830,0.3608,85327.0,85326.0,0.1171952]
[1743626539029,0.36144,85327.0,85326.0,0.1179152]
[1743626539235,0.4786338,85327.0,85326.0,0.00072]
[1743626539536,0.0586,85323.0,85319.0,0.1172047]
[1743626539745,0.3608,85320.0,85319.0,0.1765672]
[1743626540033,0.00068,85320.0,85319.0,0.1765672]
[1743626540238,0.3608,85327.0,85326.0,0.1171952]
[1743626540437,0.5487152,85327.0,85326.0,0.1179152]
[1743626542234,0.40152,85327.0,85326.0,0.1179152]
[1743626542436,0.36152,85327.0,85326.0,0.1179152]
[1743626542642,0.3608,85362.0,85326.0,0.51152]
[1743626542831,0.3608,85362.0,85361.0,0.1171471]
[1743626543143,0.36140001,85362.0,85361.0,0.00128]
[1743626543446,0.0585771,85356.0,85353.0,0.3608]
[1743626543741,0.1171621,85354.0,85353.0,0.0012]
[1743626543946,0.1184421,85354.0,85353.0,0.1183581]
[1743626544842,0.1184421,85354.0,85353.0,0.4791581]
[1743626545342,0.1184421,85354.0,85353.0,0.1183581]
[1743626546739,0.1184421,85354.0,85353.0,0.0012]
[1743626546939,0.1884421,85354.0,85353.0,0.0012]
[1743626547141,0.1171622,85350.0,85349.0,0.1171623]
[1743626547444,0.1171622,85350.0,85349.0,0.1183623]
[1743626547639,0.1757382,85354.0,85351.0,0.1757406]
[1743626547841,0.2457382,85354.0,85353.0,0.1171581]
[1743626548041,0.2457382,85354.0,85353.0,0.1184381]
[1743626548347,0.11,85367.0,85353.0,0.1184381]
[1743626548348,0.0585592,85382.0,85378.0,0.1171238]
[1743626548536,0.1171295,85377.0,85376.0,0.1171256]
[1743626548740,0.1757012,85374.0,85373.0,0.1756884]
[1743626548939,0.1757012,85374.0,85373.0,0.1768884]
[1743626549241,0.0585661,85374.0,85373.0,0.1768884]
[1743626551041,0.0585661,85374.0,85373.0,0.0012]
[1743626551250,0.1171403,85366.0,85365.0,0.00017569]
[1743626551542,0.11774031,85366.0,85365.0,0.00017569]
[1743626552341,0.11774031,85366.0,85365.0,0.11851729]
[1743626552544,0.11834031,85366.0,85365.0,0.11851729]
[1743626552844,0.3608,85391.0,85365.0,0.00137569]
[1743626553050,0.3608,85405.0,85379.0,0.3608]
[1743626553238,0.1170773,85414.0,85413.0,0.1756083]
[1743626553435,0.3608,85430.0,85429.0,0.1170501]
[1743626553641,0.5363788,85430.0,85429.0,0.00156]
[1743626553837,0.1170566,85427.0,85426.0,0.1755861]
[1743626554041,0.1170566,85427.0,85426.0,0.0601289]
[1743626554242,0.1170566,85427.0,85426.0,0.0585289]
[1743626554548,0.1297061,85427.0,85426.0,0.0585289]
[1743626555150,0.1297061,85427.0,85426.0,0.0601689]
[1743626555335,0.0126495,85427.0,85426.0,0.0601689]
[1743626555541,0.1170525,85430.0,85429.0,0.1170539]
[1743626555741,0.1170525,85430.0,85429.0,0.4794139]
[1743626555936,0.5363643,85439.0,85438.0,0.1170415]
[1743626556139,0.1755518,85445.0,85444.0,0.0585161]
[1743626556348,0.1170119,85462.0,85461.0,0.0585044]
[1743626556555,0.00234022,85462.0,85461.0,0.0585044]
[1743626556743,0.00234022,85462.0,85461.0,0.0600644]
[1743626556947,0.00234022,85462.0,85461.0,0.4208644]
[1743626557450,0.3608,85478.0,85475.0,0.0584949]
[1743626557652,0.1754783,85481.0,85480.0,0.116984]
[1743626557839,0.20964157,85481.0,85480.0,0.118544]
[1743626558246,0.20964157,85481.0,85480.0,0.00156]
[1743626558553,0.1169936,85473.0,85472.0,0.00017547]
[1743626558745,0.1169936,85473.0,85453.0,0.1170201]
[1743626558746,0.11701,85461.0,85460.0,0.3608]
[1743626558946,0.11701,85461.0,85460.0,0.36196]
[1743626559257,0.24240857,85461.0,85460.0,0.00116]
[1743626559450,0.22817,85461.0,85460.0,0.00116]
[1743626559651,0.1170292,85448.0,85447.0,0.117028]
[1743626559850,0.1170292,85447.0,85446.0,0.36196]
[1743626560059,0.1181892,85447.0,85446.0,0.4801106]
[1743626560243,0.1181892,85447.0,85446.0,0.4789506]
[1743626560447,0.1181892,85447.0,85446.0,0.1181506]
[1743626560646,0.00116,85447.0,85446.0,0.1181506]
[1743626560853,0.1755174,85461.0,85460.0,0.1170102]
[1743626561052,0.12064,85461.0,85460.0,0.1181302]
[1743626561342,1e-07,85461.0,85460.0,0.1181302]
[1743626561560,0.1169799,85485.0,85482.0,0.116979]
[1743626561750,0.3554686,85485.0,85484.0,0.1169758]
[1743626561945,0.35606861,85485.0,85484.0,0.1169758]
[1743626562145,0.23908871,85485.0,85484.0,0.1182558]
[1743626562353,0.18060001,85485.0,85484.0,0.1182558]
[1743626562953,0.29757721,85485.0,85484.0,0.00128]
[1743626563256,0.175491,85475.0,85474.0,0.1169907]
[1743626563445,0.28631046,85475.0,85474.0,0.1182707]
[1743626563645,0.00128,85475.0,85474.0,0.1182707]
[1743626564050,0.1169841,85483.0,85482.0,0.0584903]
[1743626564251,0.13758411,85483.0,85482.0,0.0584903]
[1743626564447,0.1169994,85471.0,85470.0,0.1754885]
[1743626564652,0.00132,85471.0,85470.0,0.1183177]
[1743626564950,0.3608,85490.0,85480.0,0.116984]
[1743626565149,0.2282517,85490.0,85487.0,0.0584871]
[1743626565358,0.1169827,85483.0,85482.0,0.1169764]
[1743626565655,0.00017547,85491.0,85485.0,0.0584881]
[1743626565859,0.24714447,85491.0,85490.0,0.4777704]
[1743626566156,0.00153547,85491.0,85490.0,0.4790504]
[1743626566358,0.00017547,85491.0,85490.0,0.4790504]
[1743626566560,0.11714447,85491.0,85490.0,0.1182504]
[1743626566855,0.1169772,85485.0,85484.0,0.0584893]
[1743626567057,0.2182572,85485.0,85484.0,0.1182572]
[1743626567362,0.10128,85485.0,85484.0,0.1183372]
[1743626567558,0.00017547,85491.0,85488.0,0.1754564]
[1743626567765,0.01017547,85491.0,85490.0,0.1169704]
[1743626568058,0.3608,85523.0,85496.0,0.058481]
[1743626568362,0.1169403,85513.0,85512.0,0.2338726]
[1743626568659,0.1682203,85513.0,85512.0,0.2352326]
[1743626568864,0.1753928,85522.0,85519.0,0.0584652]
[1743626569158,0.1169307,85520.0,85519.0,0.11693]
[1743626569368,0.1169307,85520.0,85519.0,0.47949]
[1743626569659,0.1369307,85520.0,85519.0,0.00176]
[1743626569861,0.1169389,85513.0,85512.0,0.00017547]
[1743626570159,0.1169389,85513.0,85512.0,0.00185547]
[1743626570160,0.1369389,85513.0,85512.0,0.00185547]
[1743626570865,0.1169457,85508.0,85507.0,0.3608]
[1743626571059,0.3681057,85508.0,85507.0,0.36196]
[1743626571253,0.1169786,85484.0,85481.0,0.3608]
[1743626571456,0.1169781,85485.0,85483.0,0.0592893]
[1743626571658,0.1754607,85489.0,85488.0,0.1169731]
[1743626571856,0.1854607,85489.0,85488.0,0.4777731]
[1743626572061,0.1862607,85489.0,85488.0,0.4786131]
[1743626572264,0.1854607,85489.0,85488.0,0.4777731]
[1743626572770,0.1169745,85487.0,85486.0,0.1169731]
[1743626573067,0.01,85487.0,85486.0,0.1169731]
[1743626573263,0.00017547,85497.0,85496.0,0.1169621]
[1743626573459,0.11713627,85497.0,85496.0,0.1169621]
[1743626573767,0.0584858,85490.0,85487.0,0.37583466]
[1743626573963,0.1169731,85488.0,85487.0,0.1165717]
[1743626574165,0.00017547,85497.0,85495.0,0.1169621]
[1743626574378,0.00017547,85497.0,85496.0,0.1169621]
[1743626574572,0.4777332,85520.0,85519.0,0.1169307]
[1743626574766,0.0584698,85514.0,85513.0,0.1169345]
[1743626575166,0.0684698,85514.0,85513.0,0.1169345]
[1743626576071,0.19253582,85537.0,85513.0,0.3608]
[1743626576270,0.19253582,85537.0,85505.0,0.00017547]
[1743626576271,0.30224,85537.0,85536.0,0.1169074]
[1743626576669,0.12,85537.0,85536.0,0.1169074]
[1743626576972,0.18216,85558.0,85555.0,0.1168815]
[1743626577174,0.1168801,85556.0,85555.0,0.1168815]
[1743626577371,0.1168829,85554.0,85553.0,0.0584415]
[1743626577670,0.2976829,85554.0,85553.0,0.00088]
[1743626577871,0.1168897,85550.0,85549.0,0.1168886]
[1743626578081,0.2376883,85550.0,85549.0,0.0008]
[1743626578375,0.1169061,85538.0,85537.0,0.1168989]
[1743626578572,0.2269061,85538.0,85537.0,0.0006]
[1743626578775,0.22750611,85538.0,85537.0,0.0006]
[1743626579280,0.116917,85529.0,85528.0,0.0584585]
[1743626579582,0.116928,85523.0,85522.0,0.0584632]
[1743626579768,0.227728,85523.0,85522.0,0.0584632]
[1743626579975,0.0008,85523.0,85522.0,0.0590632]
[1743626580275,0.1169183,85529.0,85528.0,0.1169184]
[1743626580474,0.1277183,85529.0,85528.0,0.0006]
[1743626580673,0.0584796,85499.0,85495.0,0.0584815]
[1743626580881,0.0584859,85490.0,85489.0,0.116967]
[1743626581174,0.0584859,85490.0,85469.0,0.0584993]
[1743626581175,0.4708,85490.0,85460.0,0.37583466]
[1743626581365,0.1755006,85472.0,85471.0,0.1169927]
[1743626581572,0.1169991,85470.0,85469.0,0.1169964]
[1743626581772,0.1755109,85468.0,85467.0,0.117001]
[1743626581973,0.2351736,85468.0,85467.0,0.117601]
[1743626582475,0.1170169,85456.0,85441.0,0.3608]
[1743626582667,0.1170169,85456.0,85455.0,0.478417]
[1743626583183,0.117047,85434.0,85433.0,0.3608]
[1743626583475,0.49137919,85434.0,85417.0,0.0585342]
[1743626583682,0.01057919,85433.0,85425.0,0.00017558]
[1743626583868,0.0585269,85429.0,85425.0,0.00017558]
[1743626584067,0.0585372,85414.0,85407.0,0.1170832]
[1743626584276,0.1756084,85417.0,85416.0,0.1170717]
[1743626584480,0.0600553,85417.0,85416.0,0.11941318]
[1743626584681,0.3608,85433.0,85423.0,0.058531]
[1743626584682,0.0585249,85432.0,85423.0,0.058531]
[1743626584875,0.1170607,85425.0,85424.0,0.11900086]
[1743626585085,0.1166,85425.0,85424.0,0.11900086]
[1743626585284,0.1182,85425.0,85424.0,0.11900086]
[1743626587074,0.1182,85425.0,85424.0,0.00234126]
[1743626587275,0.1170923,85401.0,85400.0,0.1]
[1743626587583,0.117125,85380.0,85370.0,0.37583466]
[1743626587785,0.00152,85380.0,85379.0,0.1171199]
[1743626587986,0.0585586,85383.0,85382.0,0.1171183]
[1743626588480,0.058556,85387.0,85384.0,0.1171128]
[1743626588682,0.00156001,85387.0,85386.0,0.1171128]
[1743626588981,0.0001757,85391.0,85390.0,0.1171073]
[1743626589185,0.0016957,85391.0,85390.0,0.1171073]
[1743626589982,0.0016957,85391.0,85388.0,0.0585546]
[1743626589983,0.1171128,85386.0,85385.0,0.3608]
[1743626590184,0.0585578,85384.0,85377.0,0.0585623]
[1743626590486,0.1171224,85380.0,85379.0,0.0585611]
[1743626590685,0.1171186,85382.0,85381.0,0.1171183]
[1743626590883,0.1186386,85382.0,85381.0,0.1171183]
[1743626591978,0.1186383,85382.0,85381.0,0.1171183]
[1743626592379,0.00152,85382.0,85381.0,0.1171183]
[1743626592583,0.419342,85408.0,85390.0,0.1171073]
[1743626592886,0.06125571,85391.0,85363.0,0.3608]
[1743626593078,0.0585591,85382.0,85374.0,0.0001757]
[1743626593284,0.1171279,85375.0,85374.0,0.0001757]
[1743626593487,0.11824791,85375.0,85374.0,0.117305]
[1743626593883,0.00112001,85375.0,85374.0,0.117305]
[1743626594081,0.0585478,85399.0,85374.0,0.117305]
[1743626594082,0.3608,85404.0,85390.0,0.1171073]
[1743626594285,0.0701757,85391.0,85390.0,0.1171073]
[1743626595079,0.0008957,85391.0,85390.0,0.1178273]
[1743626595383,0.0001757,85391.0,85390.0,0.1178273]
[1743626595889,0.3603548,85404.0,85403.0,0.1170895]
[1743626596085,0.746667,85404.0,85403.0,0.00068]
[1743626596391,0.0585645,85376.0,85375.0,0.1756851]
[1743626596586,0.0585553,85388.0,85375.0,0.00068]
[1743626596886,0.06,85388.0,85387.0,0.1171115]
[1743626597079,0.06,85388.0,85362.0,0.3608]
[1743626597080,0.0585576,85385.0,85382.0,0.0585588]
[1743626597281,0.1171211,85381.0,85380.0,0.1171202]
[1743626597481,0.1178411,85381.0,85380.0,0.1178002]
[1743626597691,0.1178411,85381.0,85380.0,0.4786002]
[1743626597886,0.00072,85381.0,85380.0,0.4786002]
[1743626598187,0.0585524,85392.0,85386.0,0.0585555]
[1743626598485,0.1756662,85389.0,85388.0,0.1171087]
[1743626598688,0.2563862,85389.0,85388.0,0.1177087]
[1743626600191,0.44152,85389.0,85373.0,0.0001757]
[1743626600488,0.1171293,85374.0,85373.0,0.2344299]
[1743626600791,0.0001757,85390.0,85389.0,0.1171087]
[1743626600992,0.358203,85390.0,85389.0,0.1177487]
[1743626601289,0.1756909,85379.0,85363.0,0.0585719]
[1743626601590,0.00116,85379.0,85378.0,0.1171188]
[1743626601890,0.3609757,85390.0,85389.0,0.1171087]
[1743626602092,0.71916301,85390.0,85389.0,0.1177087]
[1743626602294,0.24125571,85390.0,85389.0,0.1177087]
[1743626603490,1e-08,85390.0,85389.0,0.4785087]
[1743626603687,0.3608,85436.0,85435.0,0.1170457]
[1743626603881,0.36156,85446.0,85445.0,0.117032]
[1743626604087,0.117028,85450.0,85449.0,0.1170241]
[1743626604392,0.117788,85450.0,85449.0,0.1176241]
[1743626604581,0.00076,85450.0,85449.0,0.1176241]
[1743626604778,0.00017556,85458.0,85451.0,0.1170237]
[1743626604779,0.1170228,85452.0,85451.0,0.1170237]
[1743626604980,0.2170228,85452.0,85451.0,0.00068]
[1743626605184,0.1170361,85442.0,85431.0,0.3608]
[1743626605387,0.2277961,85442.0,85441.0,0.00077556]
[1743626605586,0.2277961,85442.0,85416.0,0.3608]
[1743626605587,0.1755913,85428.0,85427.0,0.1170554]
[1743626605885,0.0008,85428.0,85427.0,0.4784554]
[1743626606086,0.3608,85450.0,85427.0,0.4784554]
[1743626606087,0.3608,85450.0,85449.0,0.1170265]
[1743626606291,0.3608,85450.0,85449.0,0.1176665]
[1743626606292,0.36144,85450.0,85449.0,0.1176665]
[1743626606489,0.47800431,85450.0,85449.0,0.1172665]
[1743626607086,0.1176651,85450.0,85449.0,0.00064]
[1743626607287,0.1170347,85443.0,85442.0,0.1170353]
[1743626607594,0.1170361,85442.0,85441.0,0.00081556]
[1743626607894,0.2277561,85442.0,85441.0,0.00145556]
[1743626608101,0.1177561,85442.0,85441.0,0.00081556]
[1743626608288,0.00072,85442.0,85441.0,0.11785296]
[1743626608489,0.4193062,85460.0,85449.0,0.1170265]
[1743626608695,0.36148,85450.0,85449.0,0.1170265]
[1743626608901,0.00068,85450.0,85449.0,0.1176665]
[1743626609195,0.1170251,85452.0,85451.0,0.1170198]
[1743626609494,0.1170415,85438.0,85429.0,0.1170528]
[1743626609797,0.00064,85438.0,85427.0,0.3608]
[1743626609998,0.3608,85439.0,85438.0,0.1170415]
[1743626610292,0.4784808,85439.0,85438.0,0.1176815]
[1743626610497,0.1170552,85428.0,85427.0,0.3608]
[1743626610690,0.1170552,85428.0,85427.0,0.00064]
[1743626610691,0.3070552,85428.0,85427.0,0.00064]
[1743626610998,0.1170964,85398.0,85397.0,0.4778977]
[1743626611184,0.1170964,85398.0,85397.0,0.1170977]
[1743626611587,0.3608,85409.0,85397.0,0.3608]
[1743626611789,0.3608,85409.0,85384.0,0.3608]
[1743626611790,0.0585455,85403.0,85402.0,0.1170856]
[1743626611997,0.0585467,85401.0,85398.0,0.0585478]
[1743626612290,0.1171073,85390.0,85389.0,0.00011747]
[1743626612493,0.2071073,85390.0,85389.0,0.11722617]
[1743626612690,0.4779073,85390.0,85389.0,0.00011747]
[1743626612892,0.59870366,85390.0,85389.0,0.00011747]
[1743626613094,0.6130607,85390.0,85389.0,0.00011747]
[1743626613294,0.61306047,85390.0,85389.0,0.00011747]
[1743626613690,0.62608482,85390.0,85389.0,0.00011747]
[1743626614100,0.6262077,85390.0,85389.0,1.194e-05]
[1743626614595,0.1554077,85390.0,85389.0,1.194e-05]
[1743626615299,1e-08,85390.0,85389.0,0.26712064]
[1743626615597,1e-08,85390.0,85389.0,0.62792064]
[1743626616095,1e-08,85390.0,85389.0,0.47792064]
[1743626616300,1e-08,85390.0,85389.0,0.47860064]
[1743626617195,0.00017556,85406.0,85405.0,0.1170868]
[1743626617400,0.00017556,85406.0,85405.0,0.4780868]
[1743626617601,0.00047469,85406.0,85405.0,0.1172868]
[1743626617791,0.1170854,85406.0,85405.0,0.1172868]
[1743626617991,0.1177654,85406.0,85405.0,0.1172868]
[1743626618196,0.1171073,85390.0,85389.0,1.194e-05]
[1743626618391,0.1171073,85390.0,85389.0,0.00065194]
[1743626618591,0.1179073,85390.0,85389.0,1.194e-05]
[1743626618787,0.48603099,85390.0,85389.0,1.194e-05]
[1743626618986,0.1756683,85388.0,85387.0,0.1171114]
[1743626619192,0.1764683,85388.0,85387.0,0.06663935]
[1743626619501,0.1764683,85388.0,85387.0,0.1179115]
[1743626619502,0.00812369,85388.0,85387.0,0.1179115]
[1743626619794,0.12523379,85388.0,85387.0,0.1179115]
[1743626620387,0.12523379,85388.0,85387.0,0.0008]
[1743626620593,0.1756759,85387.0,85386.0,0.1171115]
[1743626620794,0.1765159,85387.0,85386.0,0.1177515]
[1743626621502,0.1765159,85387.0,85386.0,0.00064]
[1743626621692,0.1171211,85380.0,85379.0,0.00017567]
[1743626621888,0.1182011,85380.0,85379.0,0.00017567]
[1743626623019,0.1482011,85380.0,85379.0,0.00017567]
[1743626624302,0.2282011,85380.0,85379.0,0.00085567]
[1743626624506,0.2282011,85380.0,85379.0,0.00017567]
[1743626624800,0.01055093,85392.0,85379.0,0.00017567]
[1743626624801,0.3608,85409.0,85379.0,0.00017567]
[1743626624994,0.00085567,85398.0,85397.0,0.1170977]
[1743626625200,0.00085567,85398.0,85397.0,0.1176977]
[1743626625400,0.00017567,85398.0,85397.0,0.1176977]
[1743626625791,0.3608,85438.0,85397.0,0.8722]
[1743626625997,0.86612,85483.0,85397.0,0.8722]
[1743626625998,0.26676711,85443.0,85442.0,0.1170361]
[1743626626193,0.03,85456.0,85455.0,0.1170183]
[1743626626394,0.02,85456.0,85455.0,0.00092]
[1743626626597,0.02,85456.0,85432.0,0.1170473]
[1743626626598,0.1755778,85433.0,85432.0,0.1170473]
[1743626626793,0.00060001,85433.0,85432.0,0.117688]
[1743626626998,0.18052,85455.0,85448.0,0.1170217]
[1743626627199,0.1170415,85438.0,85437.0,0.3608]
[1743626627400,0.0008,85438.0,85437.0,0.1178429]
[1743626627599,0.1170387,85441.0,85440.0,0.1755467]
[1743626627795,0.00017556,85446.0,85445.0,0.117032]
[1743626628110,0.1755399,85452.0,85451.0,0.0585107]
[1743626628304,0.1763399,85452.0,85451.0,0.0593107]
[1743626628499,0.1763399,85452.0,85451.0,0.0008]
[1743626628901,0.1508,85452.0,85430.0,0.3608]
[1743626629102,0.1170511,85431.0,85430.0,0.3614]
[1743626629303,0.11765111,85431.0,85430.0,0.3614]
[1743626629699,0.11765111,85431.0,85430.0,0.0006]
[1743626630105,0.1170525,85430.0,85429.0,0.11722946]
[1743626630304,0.1177325,85430.0,85429.0,0.11722946]
[1743626630910,0.00068,85430.0,85396.0,0.3608]
[1743626631114,0.3608,85452.0,85438.0,0.0585201]
[1743626631405,0.3608,85441.0,85410.0,0.3608]
[1743626631609,0.05853,85425.0,85406.0,0.3608]
[1743626631811,0.0585283,85429.0,85420.0,0.0585327]
[1743626632002,0.3608,85423.0,85389.0,0.3608]
[1743626632203,0.3608,85395.0,85380.0,0.3608]
[1743626632504,0.0585537,85391.0,85371.0,0.3608]
[1743626632707,0.1171032,85393.0,85392.0,0.0585518]
[1743626633016,0.3608,85395.0,85390.0,0.1171026]
[1743626633199,0.1170712,85417.0,85392.0,0.3608]
[1743626633408,0.01,85417.0,85416.0,0.4778717]
[1743626633608,0.01,85417.0,85416.0,0.1170717]
[1743626633806,0.1756338,85406.0,85405.0,0.1170822]
[1743626634105,0.1170748,85414.0,85413.0,0.1170744]
[1743626634307,0.1170854,85407.0,85406.0,0.1170851]
[1743626634606,0.1170854,85407.0,85405.0,0.0585431]
[1743626634607,0.00017567,85422.0,85405.0,0.00017567]
[1743626634815,0.1170854,85406.0,85405.0,0.00017567]
[1743626634998,0.1171238,85380.0,85379.0,0.1171201]
[1743626635199,0.1171034,85394.0,85393.0,0.1756498]
[1743626635520,0.3608,85402.0,85401.0,0.1170923]
[1743626635806,0.0585373,85414.0,85411.0,0.058539]
[1743626636005,0.36148,85418.0,85399.0,0.058547]
[1743626636208,0.0585483,85398.0,85397.0,0.1170977]
[1743626636411,0.0585483,85398.0,85397.0,0.1177377]
[1743626636707,0.0592283,85398.0,85397.0,0.00064]
[1743626636915,0.1171073,85390.0,85389.0,0.00017567]
[1743626637207,0.1177473,85390.0,85389.0,0.00017567]
[1743626637407,0.1171389,85368.0,85358.0,0.3608]
[1743626637610,0.1171452,85367.0,85366.0,0.00064]
[1743626637907,0.058574,85361.0,85360.0,0.1171464]
[1743626638110,0.1171777,85341.0,85338.0,0.0585889]
[1743626638308,0.36140001,85361.0,85331.0,0.0006]
[1743626638309,0.1171869,85332.0,85331.0,0.0006]
[1743626638514,0.3608,85361.0,85331.0,0.0006]
[1743626638515,0.3608,85340.0,85336.0,0.0585903]
[1743626638810,0.17963488,85354.0,85342.0,0.0585861]
[1743626639006,0.00017578,85347.0,85335.0,0.0585912]
[1743626639207,0.10017578,85347.0,85346.0,0.1171677]
[1743626639415,0.00017578,85347.0,85346.0,0.1171677]
[1743626639602,0.00017578,85347.0,85346.0,0.1177677]
[1743626640407,0.09017578,85347.0,85346.0,0.1177677]
[1743626640613,0.11794209,85347.0,85346.0,0.0006]
[1743626640819,0.11794209,85347.0,85283.0,0.5862701]
[1743626640820,0.11077579,85347.0,85311.0,0.3608]
[1743626640999,0.3608,85324.0,85323.0,0.11737508]
[1743626641205,0.00017578,85347.0,85323.0,0.00077578]
[1743626641402,0.03085578,85347.0,85325.0,0.3608]
[1743626641604,0.03077579,85347.0,85325.0,0.3608]
[1743626641805,0.3608,85343.0,85325.0,0.3614]
[1743626642011,0.3608,85339.0,85325.0,0.0006]
[1743626642209,0.3608,85326.0,85325.0,0.0006]
[1743626642515,0.00064,85326.0,85323.0,0.00017578]
[1743626642713,0.3608,85337.0,85323.0,0.00081578]
[1743626643017,0.00064,85337.0,85323.0,0.00081578]
[1743626643214,0.12,85337.0,85323.0,0.00017578]
[1743626643711,0.3608,85326.0,85323.0,0.00017578]
[1743626643917,0.46140001,85326.0,85323.0,0.00017578]
[1743626644210,0.00060001,85326.0,85323.0,0.00017578]
[1743626644411,0.11,85326.0,85323.0,0.00017578]
[1743626644611,0.11,85326.0,85323.0,0.00077578]
[1743626644810,0.3608,85326.0,85323.0,0.00077578]
[1743626645018,0.45140001,85326.0,85323.0,0.00017578]
[1743626645209,0.09060001,85326.0,85323.0,0.00017578]
[1743626645405,0.3608,85325.0,85323.0,0.00017578]
[1743626645608,0.46140001,85325.0,85310.0,0.3608]
[1743626645911,0.3608,85317.0,85310.0,0.36148]
[1743626646110,0.50140001,85317.0,85310.0,0.36148]
[1743626646612,0.45140001,85317.0,85310.0,0.36148]
[1743626646815,0.45140001,85317.0,85310.0,0.00068]
[1743626647009,0.3608,85311.0,85310.0,0.00068]
[1743626647213,0.61568481,85311.0,85305.0,0.00017578]
[1743626647413,0.19412481,85310.0,85287.0,0.3608]
[1743626647607,0.3608,85302.0,85287.0,0.3614]
[1743626647803,0.62144,85302.0,85287.0,0.3614]
[1743626648020,0.3608,85292.0,85287.0,0.0006]
[1743626648215,0.00068,85292.0,85286.0,0.3608]
[1743626648508,0.3608,85302.0,85286.0,0.3608]
[1743626648509,0.00017588,85298.0,85286.0,0.3614]
[1743626648719,0.00102586,85291.0,85286.0,0.3614]
[1743626648911,0.00162587,85291.0,85286.0,0.3614]
[1743626649109,0.10102586,85291.0,85286.0,0.3614]
[1743626649316,0.10162587,85291.0,85286.0,0.3614]
[1743626649611,0.10116483,85291.0,85286.0,0.361]
[1743626649804,0.00116483,85291.0,85286.0,0.361]
[1743626650010,0.14116483,85291.0,85286.0,0.361]
[1743626650415,0.14056482,85291.0,85286.0,0.361]
[1743626650719,0.00056482,85291.0,85286.0,0.361]
[1743626651209,0.3608,85302.0,85286.0,0.511]
[1743626651413,0.3608,85316.0,85293.0,0.3608]
[1743626651617,0.3608,85316.0,85306.0,0.37583466]
[1743626651618,0.0008,85316.0,85306.0,0.37583466]
[1743626651920,0.17984,85341.0,85310.0,0.3608]
[1743626652116,0.00084,85341.0,85330.0,0.31370927]
[1743626652315,0.01056364,85356.0,85335.0,0.3608]
[1743626652518,0.00017588,85344.0,85335.0,0.3618]
[1743626652922,0.3608,85366.0,85335.0,0.001]
[1743626653113,0.00017577,85348.0,85331.0,0.00017577]
[1743626653315,0.00017577,85348.0,85336.0,0.3608]
[1743626653610,0.00017577,85348.0,85346.0,0.3608]
[1743626653811,0.3608,85366.0,85346.0,0.3618]
[1743626654009,0.3608,85358.0,85346.0,0.3618]
[1743626654217,0.3618,85358.0,85346.0,0.3618]
[1743626654413,0.001,85358.0,85346.0,0.3618]
[1743626654608,0.3608,85358.0,85346.0,0.3618]
[1743626654812,0.47184001,85358.0,85346.0,0.3618]
[1743626655015,0.00104001,85358.0,85346.0,0.3618]
[1743626655319,0.3608,85371.0,85356.0,0.3608]
[1743626655523,0.001,85371.0,85369.0,0.3608]
[1743626655710,0.3608,85391.0,85369.0,0.36184]
[1743626655914,0.3608,85370.0,85341.0,0.3608]
[1743626656118,0.36156,85370.0,85341.0,0.3616]
[1743626656315,0.36156,85370.0,85350.0,0.31370927]
[1743626656623,0.00017577,85364.0,85350.0,0.31442927]
[1743626656820,0.00089577,85364.0,85351.0,0.3608]
[1743626657026,0.00089577,85364.0,85351.0,0.36152]
[1743626657225,0.00017577,85364.0,85351.0,0.36152]
[1743626657417,0.00093577,85364.0,85351.0,0.36152]
[1743626657623,0.00017577,85364.0,85351.0,0.36152]
[1743626657826,0.00017577,85364.0,85360.0,0.3608]
[1743626658027,0.00017577,85364.0,85360.0,0.0008]
[1743626658318,0.00017577,85364.0,85351.0,0.3608]
[1743626658524,0.00017577,85364.0,85351.0,0.36156]
[1743626658824,0.00017577,85364.0,85358.0,0.3608]
[1743626659025,0.00017577,85364.0,85358.0,0.36152]
[1743626660325,0.3608,85361.0,85347.0,0.00017577]
[1743626660535,0.64105887,85361.0,85347.0,0.00064]
[1743626660717,0.36105887,85361.0,85347.0,0.00064]
[1743626661227,0.31370927,85360.0,85347.0,0.00064]
[1743626661414,0.23068,85360.0,85347.0,0.00064]
[1743626661619,0.3608,85348.0,85322.0,0.3608]
[1743626661825,0.3608,85335.0,85322.0,0.3614]
[1743626662027,0.36168001,85335.0,85322.0,0.3614]
[1743626662222,0.3608,85355.0,85332.0,0.3608]